[Event "Titled Tuesday Blitz August 22 Early 2023"]
[White "Sarkar, Justin"]
[Black "Baghdasaryan, Vahe"]
[WhiteFideId "2010011"]
[BlackFideId "13303139"]
[WhiteElo "2239"]
[BlackElo "2403"]
[Result "1-0"]
[Round "8"]
[TimeControl "180+1"]
[Date "2023.08.22"]
[WhiteClock "0:00:03"]
[BlackClock "0:00:04"]
[Board "171"]

1. d4 {[%clk 0:02:50]}  d5 {[%clk 0:02:59]} 2. c4 {[%clk 0:02:50]}  e6 {[%clk 0:02:59]} 3. Nc3 {[%clk 0:02:50]}  Be7 {[%clk 0:02:56]} 4. Nf3 {[%clk 0:02:47]}  Nf6 {[%clk 0:02:55]} 5. Bg5 {[%clk 0:02:47]}  h6 {[%clk 0:02:54]} 6. Bh4 {[%clk 0:02:46]}  O-O {[%clk 0:02:54]} 7. e3 {[%clk 0:02:45]}  b6 {[%clk 0:02:53]} 8. Qb3 {[%clk 0:02:42]}  Bb7 {[%clk 0:02:48]} 9. Bxf6 {[%clk 0:02:42]}  Bxf6 {[%clk 0:02:43]} 10. cxd5 {[%clk 0:02:42]}  exd5 {[%clk 0:02:43]} 11. Rd1 {[%clk 0:02:42]}  Nd7 {[%clk 0:02:41]} 12. Nxd5 {[%clk 0:02:36]}  Bxd5 {[%clk 0:02:39]} 13. Qxd5 {[%clk 0:02:36]}  Qe7 {[%clk 0:02:39]} 14. Bb5 {[%clk 0:02:27]}  Rad8 {[%clk 0:02:32]} 15. Qb3 {[%clk 0:02:15]}  c5 {[%clk 0:02:28]} 16. O-O {[%clk 0:02:07]}  cxd4 {[%clk 0:02:26]} 17. Nxd4 {[%clk 0:02:05]}  Nc5 {[%clk 0:02:22]} 18. Qa3 {[%clk 0:02:02]}  Qc7 {[%clk 0:02:12]} 19. Be2 {[%clk 0:01:19]}  a5 {[%clk 0:01:42]} 20. Bf3 {[%clk 0:01:15]}  Rfe8 {[%clk 0:01:32]} 21. g3 {[%clk 0:00:58]}  Rd7 {[%clk 0:01:03]} 22. Bc6 {[%clk 0:00:43]}  Rxd4 {[%clk 0:00:44]} 23. exd4 {[%clk 0:00:35]}  Qxc6 {[%clk 0:00:36]} 24. dxc5 {[%clk 0:00:35]}  bxc5 {[%clk 0:00:34]} 25. b3 {[%clk 0:00:33]}  Qb5 {[%clk 0:00:27]} 26. Rfe1 {[%clk 0:00:23]}  Rc8 {[%clk 0:00:23]} 27. Qa4 {[%clk 0:00:20]}  Qb6 {[%clk 0:00:17]} 28. Re8+ {[%clk 0:00:19]}  Rxe8 {[%clk 0:00:16]} 29. Qxe8+ {[%clk 0:00:19]}  Kh7 {[%clk 0:00:16]} 30. Qxf7 {[%clk 0:00:19]}  Qc6 {[%clk 0:00:08]} 31. Rd7 {[%clk 0:00:17]}  a4 {[%clk 0:00:06]} 32. Qd5 {[%clk 0:00:16]}  Qb6 {[%clk 0:00:04]} 33. Qe4+ {[%clk 0:00:14]}  Kg8 {[%clk 0:00:03]} 34. Qxa4 {[%clk 0:00:14]}  Qb8 {[%clk 0:00:01]} 35. Qc4+ {[%clk 0:00:12]}  Kh7 {[%clk 0:00:02]} 36. Qe4+ {[%clk 0:00:11]}  Kg8 {[%clk 0:00:01]} 37. Qd5+ {[%clk 0:00:11]}  Kh7 {[%clk 0:00:02]} 38. Qxc5 {[%clk 0:00:11]}  Kh8 {[%clk 0:00:03]} 39. Qd5 {[%clk 0:00:09]}  Qa8 {[%clk 0:00:03]} 40. Qxa8+ {[%clk 0:00:06]}  Kh7 {[%clk 0:00:04]} 41. Qe4+ {[%clk 0:00:06]}  Kg8 {[%clk 0:00:05]} 42. Qg6 {[%clk 0:00:05]}  Kf8 {[%clk 0:00:04]} 43. Rf7+ {[%clk 0:00:05]}  Ke8 {[%clk 0:00:03]} 44. Rxg7+ {[%clk 0:00:04]}  Kd8 {[%clk 0:00:04]} 45. Qxf6+ {[%clk 0:00:04]}  Kc8 {[%clk 0:00:04]} 46. Qf8# {[%clk 0:00:03]} 1-0


[Site "https://www.chess.com"]

[Event "Titled Tuesday Blitz August 22 Early 2023"]
[White "Mrudul Dehankar"]
[Black "KSho99"]
[WhiteFideId "25096990"]
[WhiteElo "2403"]
[BlackElo "2235"]
[Result "1-0"]
[Round "8"]
[TimeControl "180+1"]
[Date "2023.08.22"]
[WhiteClock "0:00:05"]
[BlackClock "0:00:01"]
[Board "172"]

1. e4 {[%clk 0:02:54]}  b6 {[%clk 0:02:59]} 2. d4 {[%clk 0:02:52]}  Bb7 {[%clk 0:02:59]} 3. Bd3 {[%clk 0:02:53]}  g6 {[%clk 0:02:56]} 4. Nf3 {[%clk 0:02:52]}  Bg7 {[%clk 0:02:56]} 5. c3 {[%clk 0:02:44]}  d6 {[%clk 0:02:53]} 6. O-O {[%clk 0:02:44]}  Nd7 {[%clk 0:02:53]} 7. Re1 {[%clk 0:02:42]}  e6 {[%clk 0:02:53]} 8. Nbd2 {[%clk 0:02:42]}  Ne7 {[%clk 0:02:51]} 9. Nf1 {[%clk 0:02:42]}  O-O {[%clk 0:02:48]} 10. Ng3 {[%clk 0:02:42]}  c5 {[%clk 0:02:42]} 11. h4 {[%clk 0:02:41]}  h6 {[%clk 0:02:37]} 12. Be3 {[%clk 0:02:29]}  Nf6 {[%clk 0:02:34]} 13. Nh2 {[%clk 0:02:15]}  e5 {[%clk 0:02:13]} 14. Qf3 {[%clk 0:02:05]}  Nh7 {[%clk 0:01:52]} 15. Ng4 {[%clk 0:02:01]}  h5 {[%clk 0:01:24]} 16. Nh6+ {[%clk 0:01:59]}  Bxh6 {[%clk 0:01:25]} 17. Bxh6 {[%clk 0:01:58]}  Re8 {[%clk 0:01:25]} 18. Bc4 {[%clk 0:01:54]}  d5 {[%clk 0:01:24]} 19. exd5 {[%clk 0:01:43]}  Bxd5 {[%clk 0:01:23]} 20. Bxd5 {[%clk 0:01:29]}  Qxd5 {[%clk 0:01:23]} 21. Ne4 {[%clk 0:01:29]}  f5 {[%clk 0:01:02]} 22. Nd2 {[%clk 0:01:09]}  Qxf3 {[%clk 0:00:54]} 23. Nxf3 {[%clk 0:01:09]}  e4 {[%clk 0:00:54]} 24. Ne5 {[%clk 0:01:09]}  cxd4 {[%clk 0:00:53]} 25. cxd4 {[%clk 0:01:10]}  Nf6 {[%clk 0:00:50]} 26. Rac1 {[%clk 0:01:08]}  Rac8 {[%clk 0:00:46]} 27. Bg5 {[%clk 0:01:03]}  Ned5 {[%clk 0:00:44]} 28. Nxg6 {[%clk 0:01:01]}  Ng4 {[%clk 0:00:33]} 29. f3 {[%clk 0:00:44]}  Rxc1 {[%clk 0:00:15]} 30. Rxc1 {[%clk 0:00:38]}  Nge3 {[%clk 0:00:15]} 31. Re1 {[%clk 0:00:27]}  Nc2 {[%clk 0:00:15]} 32. Rd1 {[%clk 0:00:16]}  e3 {[%clk 0:00:15]} 33. Rc1 {[%clk 0:00:09]}  e2 {[%clk 0:00:14]} 34. Bd2 {[%clk 0:00:06]}  Nxd4 {[%clk 0:00:14]} 35. Kf2 {[%clk 0:00:05]}  Kf7 {[%clk 0:00:11]} 36. Nf4 {[%clk 0:00:05]}  Nxf4 {[%clk 0:00:11]} 37. Bxf4 {[%clk 0:00:06]}  Nc2 {[%clk 0:00:08]} 38. Bd2 {[%clk 0:00:05]}  Nb4 {[%clk 0:00:01]} 39. Bxb4 {[%clk 0:00:05]} 1-0


[Site "https://www.chess.com"]

[Event "Titled Tuesday Blitz August 22 Early 2023"]
[White "hsd2016"]
[Black "Ronka, Erik"]
[BlackFideId "505080"]
[WhiteElo "2232"]
[BlackElo "2400"]
[Result "0-1"]
[Round "8"]
[TimeControl "180+1"]
[Date "2023.08.22"]
[WhiteClock "0:01:16"]
[BlackClock "0:00:11"]
[Board "174"]

1. e4 {[%clk 0:03:00]}  e5 {[%clk 0:02:54]} 2. Nf3 {[%clk 0:03:00]}  Nc6 {[%clk 0:02:54]} 3. Bb5 {[%clk 0:03:00]}  a6 {[%clk 0:02:54]} 4. Bxc6 {[%clk 0:03:00]}  dxc6 {[%clk 0:02:54]} 5. O-O {[%clk 0:03:00]}  Bg4 {[%clk 0:02:55]} 6. h3 {[%clk 0:03:00]}  h5 {[%clk 0:02:53]} 7. d3 {[%clk 0:03:01]}  Qf6 {[%clk 0:02:52]} 8. Nbd2 {[%clk 0:03:01]}  Be6 {[%clk 0:02:40]} 9. Re1 {[%clk 0:02:56]}  g5 {[%clk 0:02:36]} 10. Nc4 {[%clk 0:02:48]}  g4 {[%clk 0:02:12]} 11. Nfxe5 {[%clk 0:02:38]}  gxh3 {[%clk 0:02:05]} 12. Qf3 {[%clk 0:02:38]}  Qxf3 {[%clk 0:01:43]} 13. Nxf3 {[%clk 0:02:37]}  hxg2 {[%clk 0:01:43]} 14. Kxg2 {[%clk 0:02:37]}  O-O-O {[%clk 0:01:40]} 15. Bf4 {[%clk 0:02:36]}  Nh6 {[%clk 0:01:33]} 16. Nce5 {[%clk 0:02:34]}  Ng4 {[%clk 0:01:32]} 17. Nxg4 {[%clk 0:02:31]}  hxg4 {[%clk 0:01:29]} 18. Ng5 {[%clk 0:02:31]}  Bg7 {[%clk 0:01:06]} 19. Nxe6 {[%clk 0:02:28]}  fxe6 {[%clk 0:01:07]} 20. Rab1 {[%clk 0:02:23]}  Rh3 {[%clk 0:00:59]} 21. b3 {[%clk 0:02:20]}  Rdh8 {[%clk 0:00:54]} 22. Rh1 {[%clk 0:02:20]}  Bd4 {[%clk 0:00:43]} 23. Bg3 {[%clk 0:02:10]}  Kd7 {[%clk 0:00:36]} 24. Rxh3 {[%clk 0:02:10]}  gxh3+ {[%clk 0:00:26]} 25. Kf3 {[%clk 0:02:09]}  e5 {[%clk 0:00:21]} 26. Rh1 {[%clk 0:02:05]}  Kd6 {[%clk 0:00:21]} 27. Kg4 {[%clk 0:01:57]}  Kc5 {[%clk 0:00:21]} 28. Kf5 {[%clk 0:01:22]}  Kb4 {[%clk 0:00:19]} 29. Bxe5 {[%clk 0:01:21]}  Rf8+ {[%clk 0:00:18]} 30. Ke6 {[%clk 0:01:21]}  Re8+ {[%clk 0:00:18]} 31. Kd7 {[%clk 0:01:18]}  Rxe5 {[%clk 0:00:17]} 32. Rxh3 {[%clk 0:01:19]}  Bxf2 {[%clk 0:00:16]} 33. Kxc7 {[%clk 0:01:19]}  Re7+ {[%clk 0:00:14]} 34. Kb8 {[%clk 0:01:18]}  Kc3 {[%clk 0:00:13]} 35. Rh2 {[%clk 0:01:16]}  Bg3+ {[%clk 0:00:11]} 0-1


[Site "https://www.chess.com"]

[Event "Titled Tuesday Blitz August 22 Early 2023"]
[White "Labussiere, Yago"]
[Black "Kuchava, Ana"]
[WhiteFideId "2186969"]
[BlackFideId "13605348"]
[WhiteElo "2373"]
[BlackElo "2180"]
[Result "1-0"]
[Round "8"]
[TimeControl "180+1"]
[Date "2023.08.22"]
[WhiteClock "0:00:45"]
[BlackClock "0:00:00"]
[Board "177"]

1. c4 {[%clk 0:03:00]}  e6 {[%clk 0:02:59]} 2. g3 {[%clk 0:02:58]}  Nf6 {[%clk 0:02:49]} 3. Nf3 {[%clk 0:02:59]}  d5 {[%clk 0:02:49]} 4. Bg2 {[%clk 0:03:00]}  d4 {[%clk 0:02:43]} 5. O-O {[%clk 0:03:00]}  c5 {[%clk 0:02:43]} 6. e3 {[%clk 0:03:00]}  Nc6 {[%clk 0:02:42]} 7. exd4 {[%clk 0:03:00]}  cxd4 {[%clk 0:02:43]} 8. Re1 {[%clk 0:03:00]}  Bd6 {[%clk 0:02:42]} 9. d3 {[%clk 0:02:55]}  O-O {[%clk 0:02:41]} 10. Bg5 {[%clk 0:02:54]}  e5 {[%clk 0:02:39]} 11. Nbd2 {[%clk 0:02:51]}  h6 {[%clk 0:02:32]} 12. Bxf6 {[%clk 0:02:51]}  Qxf6 {[%clk 0:02:33]} 13. a3 {[%clk 0:02:50]}  Bf5 {[%clk 0:02:32]} 14. Ne4 {[%clk 0:02:49]}  Bxe4 {[%clk 0:02:24]} 15. Rxe4 {[%clk 0:02:49]}  a5 {[%clk 0:02:25]} 16. Nd2 {[%clk 0:02:46]}  Qg6 {[%clk 0:02:09]} 17. Qb3 {[%clk 0:02:41]}  Rab8 {[%clk 0:02:01]} 18. Re2 {[%clk 0:02:32]}  Kh8 {[%clk 0:02:01]} 19. Ne4 {[%clk 0:02:24]}  f5 {[%clk 0:01:58]} 20. Nxd6 {[%clk 0:02:24]}  Qxd6 {[%clk 0:01:59]} 21. Rae1 {[%clk 0:02:22]}  Rfe8 {[%clk 0:01:57]} 22. Qb5 {[%clk 0:02:20]}  e4 {[%clk 0:01:35]} 23. Qxf5 {[%clk 0:02:15]}  Re5 {[%clk 0:01:27]} 24. Qf4 {[%clk 0:02:05]}  Rf8 {[%clk 0:01:24]} 25. Qd2 {[%clk 0:02:02]}  exd3 {[%clk 0:01:15]} 26. Qxd3 {[%clk 0:01:57]}  Rxe2 {[%clk 0:01:12]} 27. Qxe2 {[%clk 0:01:38]}  d3 {[%clk 0:01:00]} 28. Qe3 {[%clk 0:01:35]}  Rd8 {[%clk 0:00:33]} 29. Rd1 {[%clk 0:01:22]}  Ne5 {[%clk 0:00:31]} 30. b3 {[%clk 0:01:10]}  Ng4 {[%clk 0:00:17]} 31. Qe4 {[%clk 0:01:04]}  Qd4 {[%clk 0:00:02]} 32. Qxd4 {[%clk 0:01:02]}  Rxd4 {[%clk 0:00:02]} 33. Bxb7 {[%clk 0:01:00]}  a4 {[%clk 0:00:03]} 34. bxa4 {[%clk 0:00:58]}  Rxc4 {[%clk 0:00:03]} 35. Rxd3 {[%clk 0:00:57]}  Rxa4 {[%clk 0:00:03]} 36. Bc6 {[%clk 0:00:50]}  Rc4 {[%clk 0:00:03]} 37. Bd5 {[%clk 0:00:47]}  Rc2 {[%clk 0:00:02]} 38. Rf3 {[%clk 0:00:45]}  Ne5 {[%clk 0:00:02]} 39. Rf8+ {[%clk 0:00:44]}  Kh7 {[%clk 0:00:00]} 40. Be4+ {[%clk 0:00:45]} 1-0


[Site "https://www.chess.com"]

[Event "Titled Tuesday Blitz August 22 Early 2023"]
[White "Feliz Dotel, Dewar Bienvenido"]
[Black "Ardila, Oscar Humberto"]
[WhiteFideId "6402801"]
[BlackFideId "4404742"]
[WhiteElo "2140"]
[BlackElo "2328"]
[Result "1-0"]
[Round "8"]
[TimeControl "180+1"]
[Date "2023.08.22"]
[WhiteClock "0:00:46"]
[BlackClock "0:00:00"]
[Board "179"]

1. d4 {[%clk 0:03:00]}  Nf6 {[%clk 0:02:59]} 2. e3 {[%clk 0:03:00]}  e6 {[%clk 0:02:59]} 3. Nf3 {[%clk 0:03:00]}  Be7 {[%clk 0:03:00]} 4. Bd3 {[%clk 0:03:00]}  O-O {[%clk 0:03:00]} 5. O-O {[%clk 0:02:58]}  b6 {[%clk 0:03:00]} 6. b3 {[%clk 0:02:58]}  Bb7 {[%clk 0:03:01]} 7. Bb2 {[%clk 0:02:58]}  c5 {[%clk 0:03:01]} 8. Nbd2 {[%clk 0:02:58]}  Nc6 {[%clk 0:03:01]} 9. a3 {[%clk 0:02:57]}  Rc8 {[%clk 0:03:00]} 10. c3 {[%clk 0:02:54]}  cxd4 {[%clk 0:02:59]} 11. exd4 {[%clk 0:02:51]}  Qc7 {[%clk 0:02:57]} 12. Re1 {[%clk 0:02:49]}  Qf4 {[%clk 0:02:56]} 13. Ne4 {[%clk 0:02:42]}  Nxe4 {[%clk 0:02:46]} 14. Rxe4 {[%clk 0:02:42]}  Qc7 {[%clk 0:02:40]} 15. Re1 {[%clk 0:02:37]}  f5 {[%clk 0:02:40]} 16. c4 {[%clk 0:02:31]}  Bd6 {[%clk 0:02:37]} 17. Rc1 {[%clk 0:02:26]}  Bf4 {[%clk 0:02:36]} 18. Rc2 {[%clk 0:02:21]}  Na5 {[%clk 0:02:36]} 19. Rce2 {[%clk 0:02:13]}  Bxf3 {[%clk 0:02:35]} 20. gxf3 {[%clk 0:02:13]}  Bxh2+ {[%clk 0:02:36]} 21. Kg2 {[%clk 0:02:00]}  Rf6 {[%clk 0:02:34]} 22. Rh1 {[%clk 0:02:00]}  Rg6+ {[%clk 0:02:34]} 23. Kf1 {[%clk 0:02:00]}  Qf4 {[%clk 0:02:24]} 24. d5 {[%clk 0:01:57]}  Qh4 {[%clk 0:02:09]} 25. dxe6 {[%clk 0:01:16]}  Qh3+ {[%clk 0:02:05]} 26. Ke1 {[%clk 0:01:16]}  dxe6 {[%clk 0:02:05]} 27. Rxe6 {[%clk 0:01:13]}  Rxe6+ {[%clk 0:02:03]} 28. Kd2 {[%clk 0:01:13]}  Bf4+ {[%clk 0:01:56]} 29. Kc2 {[%clk 0:01:09]}  Qg2 {[%clk 0:01:47]} 30. Bxf5 {[%clk 0:01:07]}  Qxf2+ {[%clk 0:01:46]} 31. Kb1 {[%clk 0:01:07]}  Rd6 {[%clk 0:00:00]} 32. Bxh7+ {[%clk 0:00:46]} 1-0


[Site "https://www.chess.com"]

[Event "Titled Tuesday Blitz August 22 Early 2023"]
[White "Nugumanov, Bakhtiyar"]
[Black "Battlecruiser_Operational"]
[WhiteFideId "13701797"]
[WhiteElo "2123"]
[BlackElo "2315"]
[Result "0-1"]
[Round "8"]
[TimeControl "180+1"]
[Date "2023.08.22"]
[WhiteClock "0:00:00"]
[BlackClock "0:00:03"]
[Board "181"]

1. Nf3 {[%clk 0:02:59]}  e6 {[%clk 0:02:59]} 2. c4 {[%clk 0:02:59]}  f5 {[%clk 0:02:58]} 3. g3 {[%clk 0:02:58]}  Nf6 {[%clk 0:02:56]} 4. Bg2 {[%clk 0:02:59]}  Be7 {[%clk 0:02:56]} 5. O-O {[%clk 0:02:58]}  O-O {[%clk 0:02:56]} 6. Nc3 {[%clk 0:02:52]}  c5 {[%clk 0:02:49]} 7. d4 {[%clk 0:02:50]}  cxd4 {[%clk 0:02:48]} 8. Nxd4 {[%clk 0:02:51]}  Nc6 {[%clk 0:02:47]} 9. Ndb5 {[%clk 0:02:42]}  d6 {[%clk 0:02:40]} 10. e4 {[%clk 0:02:39]}  a6 {[%clk 0:02:25]} 11. Nd4 {[%clk 0:02:38]}  Nxd4 {[%clk 0:02:17]} 12. Qxd4 {[%clk 0:02:39]}  e5 {[%clk 0:02:17]} 13. Qd3 {[%clk 0:02:33]}  fxe4 {[%clk 0:02:00]} 14. Nxe4 {[%clk 0:02:34]}  Bf5 {[%clk 0:01:57]} 15. Nxf6+ {[%clk 0:02:25]}  Rxf6 {[%clk 0:01:58]} 16. Qd5+ {[%clk 0:02:26]}  Be6 {[%clk 0:01:57]} 17. Qxb7 {[%clk 0:02:23]}  Rb8 {[%clk 0:01:56]} 18. Qxa6 {[%clk 0:02:23]}  Qc7 {[%clk 0:01:41]} 19. b3 {[%clk 0:02:18]}  h6 {[%clk 0:01:22]} 20. Be3 {[%clk 0:02:14]}  Kh7 {[%clk 0:00:48]} 21. Qc6 {[%clk 0:02:02]}  Qa5 {[%clk 0:00:43]} 22. Qe4+ {[%clk 0:01:48]}  Bf5 {[%clk 0:00:41]} 23. Qd5 {[%clk 0:01:48]}  Qa3 {[%clk 0:00:27]} 24. Be4 {[%clk 0:01:41]}  g6 {[%clk 0:00:25]} 25. Qd3 {[%clk 0:01:31]}  Qb2 {[%clk 0:00:15]} 26. Rfb1 {[%clk 0:01:28]}  Qa3 {[%clk 0:00:15]} 27. Rd1 {[%clk 0:01:20]}  Qb2 {[%clk 0:00:15]} 28. Bxf5 {[%clk 0:01:11]}  gxf5 {[%clk 0:00:15]} 29. Qd2 {[%clk 0:01:11]}  Qa3 {[%clk 0:00:14]} 30. Qc2 {[%clk 0:01:06]}  Qa8 {[%clk 0:00:12]} 31. Rd5 {[%clk 0:01:05]}  Rg8 {[%clk 0:00:11]} 32. Bd2 {[%clk 0:00:57]}  Kh8 {[%clk 0:00:11]} 33. b4 {[%clk 0:00:53]}  f4 {[%clk 0:00:11]} 34. Bc3 {[%clk 0:00:50]}  Qc8 {[%clk 0:00:11]} 35. Qd3 {[%clk 0:00:39]}  Qh3 {[%clk 0:00:10]} 36. Qf1 {[%clk 0:00:37]}  Qg4 {[%clk 0:00:10]} 37. c5 {[%clk 0:00:29]}  fxg3 {[%clk 0:00:09]} 38. hxg3 {[%clk 0:00:28]}  Qf3 {[%clk 0:00:05]} 39. Qg2 {[%clk 0:00:24]}  Qxc3 {[%clk 0:00:04]} 40. Rad1 {[%clk 0:00:20]}  Qxb4 {[%clk 0:00:04]} 41. cxd6 {[%clk 0:00:18]}  Bxd6 {[%clk 0:00:05]} 42. Qh3 {[%clk 0:00:14]}  Bf8 {[%clk 0:00:04]} 43. Rd7 {[%clk 0:00:14]}  Qa4 {[%clk 0:00:01]} 44. Qg2 {[%clk 0:00:10]}  Bg7 {[%clk 0:00:01]} 45. R1d2 {[%clk 0:00:05]}  Qa3 {[%clk 0:00:01]} 46. R7d3 {[%clk 0:00:05]}  Qa4 {[%clk 0:00:01]} 47. Rd7 {[%clk 0:00:04]}  Qa5 {[%clk 0:00:01]} 48. R7d3 {[%clk 0:00:05]}  Qa8 {[%clk 0:00:01]} 49. Qf1 {[%clk 0:00:05]}  Qb8 {[%clk 0:00:02]} 50. a4 {[%clk 0:00:05]}  Qf8 {[%clk 0:00:03]} 51. a5 {[%clk 0:00:05]}  e4 {[%clk 0:00:04]} 52. Re3 {[%clk 0:00:04]}  Re6 {[%clk 0:00:04]} 53. Rde2 {[%clk 0:00:05]}  Qe7 {[%clk 0:00:04]} 54. Qg2 {[%clk 0:00:05]}  Re8 {[%clk 0:00:03]} 55. Qh3 {[%clk 0:00:05]}  Bd4 {[%clk 0:00:03]} 56. Rb3 {[%clk 0:00:04]}  e3 {[%clk 0:00:03]} 57. f3 {[%clk 0:00:05]}  Ba7 {[%clk 0:00:03]} 58. Rb5 {[%clk 0:00:03]}  Kg7 {[%clk 0:00:03]} 59. Qg4+ {[%clk 0:00:03]}  Rg6 {[%clk 0:00:02]} 60. Qf4 {[%clk 0:00:02]}  Qf6 {[%clk 0:00:02]} 61. Rb7+ {[%clk 0:00:00]}  Re7 {[%clk 0:00:03]} 0-1


[Site "https://www.chess.com"]

[Event "Titled Tuesday Blitz August 22 Early 2023"]
[White "micke12a"]
[Black "Zepeda Berlanga, Jan Enrique"]
[BlackFideId "5132355"]
[WhiteElo "2315"]
[BlackElo "2007"]
[Result "1-0"]
[Round "8"]
[TimeControl "180+1"]
[Date "2023.08.22"]
[WhiteClock "0:00:19"]
[BlackClock "0:00:00"]
[Board "182"]

1. e4 {[%clk 0:03:00]}  c5 {[%clk 0:02:59]} 2. Nf3 {[%clk 0:03:01]}  d6 {[%clk 0:02:59]} 3. d4 {[%clk 0:03:01]}  cxd4 {[%clk 0:03:00]} 4. Qxd4 {[%clk 0:03:01]}  Nc6 {[%clk 0:02:58]} 5. Qe3 {[%clk 0:03:00]}  Nf6 {[%clk 0:02:57]} 6. Be2 {[%clk 0:03:00]}  g6 {[%clk 0:02:56]} 7. O-O {[%clk 0:03:00]}  Bg7 {[%clk 0:02:56]} 8. h3 {[%clk 0:03:01]}  O-O {[%clk 0:02:56]} 9. Rd1 {[%clk 0:03:02]}  Qc7 {[%clk 0:02:38]} 10. c4 {[%clk 0:03:01]}  Be6 {[%clk 0:02:33]} 11. Nc3 {[%clk 0:02:58]}  Na5 {[%clk 0:02:30]} 12. Nd5 {[%clk 0:02:23]}  Bxd5 {[%clk 0:02:14]} 13. cxd5 {[%clk 0:02:22]}  Rac8 {[%clk 0:02:08]} 14. Bd2 {[%clk 0:02:19]}  Nc4 {[%clk 0:02:05]} 15. Bxc4 {[%clk 0:02:03]}  Qxc4 {[%clk 0:02:05]} 16. Re1 {[%clk 0:01:53]}  Nd7 {[%clk 0:01:48]} 17. Qxa7 {[%clk 0:01:45]}  Bxb2 {[%clk 0:01:40]} 18. Rab1 {[%clk 0:01:45]}  Bf6 {[%clk 0:00:49]} 19. Qxb7 {[%clk 0:01:29]}  Nc5 {[%clk 0:00:45]} 20. Qb5 {[%clk 0:01:20]}  Qxa2 {[%clk 0:00:42]} 21. e5 {[%clk 0:00:59]}  Bxe5 {[%clk 0:00:27]} 22. Nxe5 {[%clk 0:00:59]}  dxe5 {[%clk 0:00:28]} 23. Bb4 {[%clk 0:00:45]}  Ne4 {[%clk 0:00:23]} 24. Qf1 {[%clk 0:00:28]}  Qxd5 {[%clk 0:00:21]} 25. Bxe7 {[%clk 0:00:25]}  Rfe8 {[%clk 0:00:20]} 26. Ba3 {[%clk 0:00:23]}  Qe6 {[%clk 0:00:16]} 27. Rxe4 {[%clk 0:00:22]}  Rc3 {[%clk 0:00:14]} 28. Bb2 {[%clk 0:00:22]}  Rc5 {[%clk 0:00:13]} 29. Rbe1 {[%clk 0:00:21]}  Qb3 {[%clk 0:00:10]} 30. Bxe5 {[%clk 0:00:19]}  f5 {[%clk 0:00:10]} 31. R4e3 {[%clk 0:00:19]}  Rcxe5 {[%clk 0:00:08]} 32. Rxe5 {[%clk 0:00:18]}  Rxe5 {[%clk 0:00:06]} 33. Rxe5 {[%clk 0:00:19]}  Qf7 {[%clk 0:00:06]} 34. Qe2 {[%clk 0:00:20]}  Qb7 {[%clk 0:00:03]} 35. Re7 {[%clk 0:00:19]}  Qb1+ {[%clk 0:00:03]} 36. Kh2 {[%clk 0:00:20]}  Qb8+ {[%clk 0:00:03]} 37. g3 {[%clk 0:00:20]}  Qb2 {[%clk 0:00:00]} 38. Qe6+ {[%clk 0:00:19]} 1-0


[Site "https://www.chess.com"]

[Event "Titled Tuesday Blitz August 22 Early 2023"]
[White "Berezin, Viktor"]
[Black "Senft, Sean"]
[WhiteFideId "14107872"]
[BlackFideId "2044960"]
[WhiteElo "2459"]
[BlackElo "2326"]
[Result "1-0"]
[Round "8"]
[TimeControl "180+1"]
[Date "2023.08.22"]
[WhiteClock "0:01:02"]
[BlackClock "0:00:29"]
[Board "184"]

1. Nf3 {[%clk 0:02:46]}  d5 {[%clk 0:02:59]} 2. c4 {[%clk 0:02:46]}  c6 {[%clk 0:02:58]} 3. g3 {[%clk 0:02:45]}  Nf6 {[%clk 0:02:58]} 4. Bg2 {[%clk 0:02:46]}  Bg4 {[%clk 0:02:57]} 5. Ne5 {[%clk 0:02:45]}  Bf5 {[%clk 0:02:57]} 6. O-O {[%clk 0:02:46]}  e6 {[%clk 0:02:57]} 7. Qb3 {[%clk 0:02:46]}  Qb6 {[%clk 0:02:56]} 8. Nc3 {[%clk 0:02:41]}  Nbd7 {[%clk 0:02:56]} 9. Nxd7 {[%clk 0:02:40]}  Nxd7 {[%clk 0:02:57]} 10. d4 {[%clk 0:02:39]}  Qxb3 {[%clk 0:02:55]} 11. axb3 {[%clk 0:02:39]}  Bb4 {[%clk 0:02:54]} 12. c5 {[%clk 0:02:38]}  Bxc3 {[%clk 0:02:54]} 13. bxc3 {[%clk 0:02:37]}  O-O {[%clk 0:02:53]} 14. b4 {[%clk 0:02:36]}  a6 {[%clk 0:02:53]} 15. f3 {[%clk 0:02:30]}  Bc2 {[%clk 0:02:53]} 16. e4 {[%clk 0:02:29]}  Bb3 {[%clk 0:02:53]} 17. Re1 {[%clk 0:02:28]}  Bc4 {[%clk 0:02:53]} 18. Bf4 {[%clk 0:02:27]}  h6 {[%clk 0:02:45]} 19. Bd6 {[%clk 0:02:27]}  Rfd8 {[%clk 0:02:41]} 20. Bf1 {[%clk 0:02:23]}  Bxf1 {[%clk 0:02:38]} 21. Kxf1 {[%clk 0:02:24]}  Nf6 {[%clk 0:02:39]} 22. Kf2 {[%clk 0:02:23]}  Ne8 {[%clk 0:02:39]} 23. Bf4 {[%clk 0:02:23]}  g5 {[%clk 0:02:35]} 24. Bd2 {[%clk 0:02:19]}  f5 {[%clk 0:02:35]} 25. exf5 {[%clk 0:02:17]}  exf5 {[%clk 0:02:35]} 26. Re7 {[%clk 0:02:17]}  Rab8 {[%clk 0:02:31]} 27. Rae1 {[%clk 0:02:17]}  Ng7 {[%clk 0:02:30]} 28. h4 {[%clk 0:02:15]}  Re8 {[%clk 0:02:27]} 29. hxg5 {[%clk 0:02:12]}  hxg5 {[%clk 0:02:23]} 30. Bxg5 {[%clk 0:02:13]}  Kf8 {[%clk 0:02:23]} 31. Rxe8+ {[%clk 0:01:56]}  Rxe8 {[%clk 0:02:23]} 32. Rxe8+ {[%clk 0:01:56]}  Kxe8 {[%clk 0:02:24]} 33. Ke3 {[%clk 0:01:56]}  Kf7 {[%clk 0:02:23]} 34. Kf4 {[%clk 0:01:50]}  Kg6 {[%clk 0:02:23]} 35. Bh4 {[%clk 0:01:50]}  Ne6+ {[%clk 0:01:43]} 36. Ke5 {[%clk 0:01:49]}  Nc7 {[%clk 0:01:44]} 37. g4 {[%clk 0:01:40]}  fxg4 {[%clk 0:01:43]} 38. fxg4 {[%clk 0:01:41]}  Nb5 {[%clk 0:01:42]} 39. Be1 {[%clk 0:01:39]}  Kg5 {[%clk 0:01:43]} 40. Ke6 {[%clk 0:01:27]}  Kxg4 {[%clk 0:01:43]} 41. Kd7 {[%clk 0:01:28]}  Kf3 {[%clk 0:01:43]} 42. Kc8 {[%clk 0:01:29]}  Ke2 {[%clk 0:01:44]} 43. Bh4 {[%clk 0:01:28]}  Nxc3 {[%clk 0:01:41]} 44. Kxb7 {[%clk 0:01:28]}  Kd3 {[%clk 0:01:34]} 45. Bf6 {[%clk 0:01:24]}  Kc4 {[%clk 0:01:34]} 46. Kxa6 {[%clk 0:01:20]}  Na4 {[%clk 0:00:58]} 47. b5 {[%clk 0:01:17]}  Nxc5+ {[%clk 0:00:33]} 48. dxc5 {[%clk 0:01:18]}  Kxc5 {[%clk 0:00:32]} 49. b6 {[%clk 0:01:15]}  d4 {[%clk 0:00:32]} 50. Bxd4+ {[%clk 0:01:10]}  Kxd4 {[%clk 0:00:32]} 51. b7 {[%clk 0:01:10]}  c5 {[%clk 0:00:32]} 52. b8=Q {[%clk 0:01:11]}  c4 {[%clk 0:00:32]} 53. Qd6+ {[%clk 0:01:11]}  Ke3 {[%clk 0:00:31]} 54. Kb5 {[%clk 0:01:11]}  c3 {[%clk 0:00:31]} 55. Qa3 {[%clk 0:01:08]}  Kd2 {[%clk 0:00:30]} 56. Kc4 {[%clk 0:01:08]}  c2 {[%clk 0:00:30]} 57. Qc3+ {[%clk 0:01:02]}  Kd1 {[%clk 0:00:29]} 58. Qd3+ {[%clk 0:01:02]}  Kc1 {[%clk 0:00:30]} 59. Kb3 {[%clk 0:01:01]}  Kb1 {[%clk 0:00:28]} 60. Qxc2+ {[%clk 0:01:02]}  Ka1 {[%clk 0:00:29]} 61. Qb2# {[%clk 0:01:02]} 1-0


[Site "https://www.chess.com"]